fUST/lending_fUST_20250212
["ID","MTS","AMOUNT","RATE_DAILY","PERIOD"]
[352845799,1739365838948,-990.14,0.00011095,2]
[352845800,1739365838958,-500.0,0.00011095,2]
[352845801,1739365838968,-500.0,0.00011095,2]
[352845802,1739365838977,-1823.91,0.00011095,2]
[352845803,1739365838987,-500.0,0.00011095,2]
[352845804,1739365838997,-500.0,0.00011095,2]
[352845805,1739365839006,-225.53813587,0.00011095,2]
[352845806,1739365839016,-500.0,0.00011095,2]
[352845807,1739365839025,-500.0,0.00011095,2]
[352845808,1739365839034,-500.0,0.00011095,2]
[352845809,1739365839046,-500.0,0.00011095,2]
[352845810,1739365839055,-500.0,0.00011095,2]
[352845811,1739365839065,-500.0,0.00011095,2]
[352845812,1739365839074,-500.0,0.00011095,2]
[352845813,1739365839083,-500.0,0.00011232,2]
[352845814,1739365839092,-500.0,0.00011232,2]
[352845815,1739365839101,-500.0,0.00011232,2]
[352845816,1739365839111,-500.0,0.00011232,2]
[352845817,1739365839121,-589.24371873,0.00011232,2]
[352845818,1739365839130,-500.0,0.00011232,2]
[352845819,1739365839140,-500.0,0.00011232,2]
[352845820,1739365839150,-500.0,0.00011232,2]
[352845821,1739365839159,-301.41538186,0.00011232,2]
[352845822,1739365839169,-500.0,0.00011232,2]
[352845823,1739365839178,-359.16066479,0.00011232,2]
[352845824,1739365839193,-140.83933521,0.00011232,2]
[352845825,1739365839203,-500.0,0.00011232,2]
[352845826,1739365839212,-152.54347762,0.00011232,2]
[352845827,1739365839221,-500.0,0.00011232,2]
[352845828,1739365839230,-500.0,0.00011232,2]
[352845829,1739365839239,-500.0,0.00011232,2]
[352845830,1739365839248,-145.01718717,0.00011232,2]
[352845831,1739365839538,-354.98281283,0.00011232,2]
[352845832,1739365839547,-698.96,0.00011232,2]
[352845833,1739365839557,-500.0,0.00011232,2]
[352845834,1739365839566,-500.0,0.00011232,2]
[352845835,1739365839575,-500.0,0.00011232,2]
[352845836,1739365839585,-1640.1,0.00011232,2]
[352845837,1739365839595,-377.53335549,0.00011232,2]
[352845838,1739365839606,-122.46664451,0.00011232,2]
[352845839,1739365839615,-1146.91,0.00011232,2]
[352845840,1739365839625,-500.0,0.00011232,2]
[352845841,1739365839634,-500.0,0.00011232,2]
[352845842,1739365839643,-500.0,0.00011232,2]
[352845843,1739365839652,-500.0,0.00011232,2]
[352845844,1739365839662,-500.0,0.00011232,2]
[352845845,1739365839671,-75.82335549,0.00011232,2]
[352845846,1739365839683,-424.17664451,0.00011232,2]
[352845847,1739365839693,-409.65033549,0.00011232,2]
[352845848,1739365839745,-81.42966451,0.00011232,2]
[352845849,1739365839755,-500.0,0.00011232,2]
[352845850,1739365839765,-500.0,0.00011232,2]
[352845851,1739365839774,-2311.84740341,0.00011232,2]
[352845852,1739365839787,-488.9493954,0.00011232,2]
[352845854,1739365840548,-2081.49320119,0.00011232,2]
[352845855,1739365840557,-629.87,0.00011232,2]
[352845856,1739365840567,-500.0,0.00011232,2]
[352845857,1739365840578,-500.0,0.00011232,2]
[352845858,1739365840588,-500.0,0.00011232,2]
[352845859,1739365840597,-500.0,0.00011232,2]
[352845860,1739365840606,-507.37,0.00011232,2]
[352845861,1739365840616,-500.0,0.00011232,2]
[352845862,1739365840625,-500.0,0.00011232,2]
[352845863,1739365840635,-990.14,0.00011232,2]
[352845864,1739365840644,-500.0,0.00011232,2]
[352845865,1739365840653,-500.0,0.00011232,2]
[352845866,1739365840663,-1823.91,0.00011232,2]
[352845867,1739365840673,-500.0,0.00011232,2]
[352845868,1739365840682,-500.0,0.00011232,2]
[352845869,1739365840692,-366.43771945,0.00011232,2]
[352845870,1739365840701,-500.0,0.00011232,2]
[352845871,1739365840710,-500.0,0.00011232,2]
[352845872,1739365840725,-500.0,0.00011232,2]
[352845873,1739365840734,-500.0,0.00011232,2]
[352845875,1739365840743,-500.0,0.00011232,2]
[352845877,1739365840753,-500.0,0.00011367,2]
[352845878,1739365840762,-333.62,0.00011369,2]
[352845879,1739365840771,-500.0,0.00011369,2]
[352845880,1739365840780,-245.80546846,0.00011369,2]
[352845881,1739365840790,-500.0,0.00011369,2]
[352845882,1739365840800,-500.0,0.00011369,2]
[352845883,1739365840809,-500.0,0.00011369,2]
[352845884,1739365840818,-500.0,0.00011369,2]
[352845885,1739365840828,-572.41807172,0.00011369,2]
[352845886,1739365840837,-296.78202536,0.00011369,2]
[352845887,1739365840847,-500.0,0.00011369,2]
[352845888,1739365840857,-500.0,0.00011369,2]
[352845889,1739365840866,-509.99,0.00011369,2]
[352845890,1739365840876,-500.0,0.00011369,2]
[352845891,1739365840885,-698.96,0.00011369,2]
[352845892,1739365840895,-500.0,0.00011369,2]
[352845893,1739365840904,-500.0,0.00011369,2]
[352845894,1739365840914,-1640.1,0.00011369,2]
[352845895,1739365840924,-500.0,0.00011369,2]
[352845896,1739365840933,-1146.91,0.00011369,2]
[352845897,1739365840942,-500.0,0.00011369,2]
[352845898,1739365840952,-500.0,0.00011369,2]
[352845899,1739365840961,-500.0,0.00011369,2]
[352845900,1739365840971,-500.0,0.00011369,2]
[352845901,1739365840981,-500.0,0.00011369,2]
[352845902,1739365840990,-500.0,0.00011369,2]
[352845903,1739365840999,-500.0,0.00011369,2]
[352845904,1739365841008,-4882.29,0.00011369,2]
[352845905,1739365841018,-629.87,0.00011369,2]
[352845906,1739365841027,-500.0,0.00011369,2]
[352845907,1739365841037,-500.0,0.00011369,2]
[352845908,1739365841046,-500.0,0.00011369,2]
[352845909,1739365841055,-500.0,0.00011369,2]
[352845910,1739365841064,-507.37,0.00011369,2]
[352845911,1739365841073,-500.0,0.00011369,2]
[352845912,1739365841082,-500.0,0.00011369,2]
[352845913,1739365841091,-990.14,0.00011369,2]
[352845914,1739365841100,-500.0,0.00011369,2]
[352845915,1739365841110,-500.0,0.00011369,2]
[352845916,1739365841119,-1823.91,0.00011369,2]
[352845917,1739365841129,-500.0,0.00011369,2]
[352845918,1739365841139,-500.0,0.00011369,2]
[352845919,1739365841148,-500.0,0.00011369,2]
[352845920,1739365841158,-500.0,0.00011369,2]
[352845921,1739365841168,-500.0,0.00011369,2]
[352845922,1739365841178,-500.0,0.00011369,2]
[352845923,1739365841187,-500.0,0.00011369,2]
[352845924,1739365841197,-500.0,0.00011447,2]
[352845925,1739365841206,-500.57772834,0.00011461,2]
[352845926,1739365841318,-500.0,0.00011461,2]
[352845927,1739365841328,-150.35998969,0.00011506,4]
[352845928,1739365841338,-418.50392221,0.00011506,2]
[352845929,1739365841347,-500.0,0.00011506,2]
[352845930,1739365841356,-500.0,0.00011506,2]
[352845931,1739365841365,-500.0,0.00011506,2]
[352845932,1739365841374,-500.0,0.00011506,2]
[352845933,1739365841383,-500.0,0.00011506,2]
[352845934,1739365841392,-628.24,0.00011506,2]
[352845935,1739365841402,-500.0,0.00011506,2]
[352845936,1739365841411,-698.96,0.00011506,2]
[352845937,1739365841420,-500.0,0.00011506,2]
[352845938,1739365841429,-1640.1,0.00011506,2]
[352845939,1739365841438,-500.0,0.00011506,2]
[352845940,1739365841447,-1146.91,0.00011506,2]
[352845941,1739365841456,-612.00607273,0.00011506,2]
[352845942,1739365841465,-500.0,0.00011506,2]
[352845943,1739365841474,-500.0,0.00011506,2]
[352845944,1739365841483,-500.0,0.00011506,2]
[352845945,1739365841493,-500.0,0.00011506,2]
[352845946,1739365841507,-500.0,0.00011506,2]
[352845947,1739365841517,-500.0,0.00011506,2]
[352845948,1739365841527,-4882.29,0.00011506,2]
[352845949,1739365841536,-500.0,0.00011506,2]
[352845950,1739365841548,-629.87,0.00011506,2]
[352845951,1739365841557,-500.0,0.00011506,2]
[352845952,1739365841567,-360.4543651,0.00011506,2]
[352845953,1739365841582,-139.5456349,0.00011506,2]
[352845954,1739365841592,-500.0,0.00011506,2]
[352845955,1739365841601,-507.37,0.00011506,2]
[352845956,1739365841612,-500.0,0.00011506,2]
[352845957,1739365841622,-500.0,0.00011506,2]
[352845958,1739365841631,-317.0843651,0.00011506,2]
[352845959,1739365841644,-653.5073582,0.00011506,2]
[352845965,1739365843445,-19.5482767,0.00011506,2]
[352845966,1739365843455,-470.57036544,0.00011506,2]
[352845967,1739365843465,-500.0,0.00011506,2]
[352845968,1739365843474,-937.89969812,0.00011506,2]
[352845969,1739365843561,-886.01030188,0.00011506,2]
[352845971,1739365843571,-500.0,0.00011506,2]
[352845973,1739365843581,-500.0,0.00011506,2]
[352845975,1739365843591,-500.0,0.00011506,2]
[352845977,1739365843600,-180.74,0.00011506,2]
[352845978,1739365843610,-500.0,0.00011506,2]
[352845979,1739365843619,-500.0,0.00011506,2]
[352845980,1739365843628,-500.0,0.00011506,2]
[352845981,1739365843637,-500.0,0.00011643,2]
[352845982,1739365843647,-564.33,0.00011643,2]
[352845983,1739365843656,-500.0,0.00011643,2]
[352845984,1739365843666,-698.96,0.00011643,2]
[352845985,1739365843675,-562.01,0.00011643,2]
[352845986,1739365843684,-1606.89930472,0.00011643,2]
[352846004,1739365846474,-33.20069528,0.00011643,2]
[352846005,1739365846486,-500.0,0.00011643,2]
[352846006,1739365846498,-677.26500467,0.00011643,2]
[352846007,1739365846513,-469.64499533,0.00011643,2]
[352846008,1739365846524,-500.0,0.00011643,2]
[352846009,1739365846535,-500.0,0.00011643,2]
[352846010,1739365846547,-500.0,0.00011643,2]
[352846011,1739365846556,-38.55500467,0.00011643,2]
[352846015,1739366160483,1000.0,0.00016,120]
[352846054,1739366945143,-218.45559197,9.605e-05,2]
[352846055,1739366959138,-4781.54440803,9.605e-05,2]
[352846056,1739366959159,-4776.25839197,9.702e-05,2]
[352846057,1739366964106,-4937.4556,9.605e-05,2]
[352846059,1739366973109,-62.5444,9.605e-05,2]
[352846060,1739366973131,-223.74160803,9.702e-05,2]
[352846061,1739366973152,-300.0,9.997e-05,2]
[352846062,1739366973173,-2521.74200518,0.0001,2]
[352846113,1739367032859,-260.41316501,9.7e-05,2]
[352846114,1739367032869,-1498.77681258,9.801e-05,2]
[352846115,1739367032880,-5000.0,9.9e-05,2]
[352846116,1739367032895,-300.0,9.999e-05,2]
[352846117,1739367032910,-532.25799482,0.0001,2]
[352846118,1739367032922,-3054.0,0.0001,2]
[352846119,1739367032936,-363.28960145,0.0001,2]
[352846232,1739367038887,-652.62103127,9.9e-05,2]
[352846235,1739367038905,-4347.37896873,9.9e-05,2]
[352846237,1739367038923,-2690.71039855,0.0001,2]
[352846238,1739367038937,-3054.0,0.0001,2]
[352846241,1739367038952,-869.05091179,0.0001,2]
[352846243,1739367038965,-2184.94908821,0.0001,2]
[352846245,1739367038977,-3054.0,0.0001,2]
[352846246,1739367038988,-498.23002495,0.0001,2]
[352846247,1739367039009,-394.76997505,0.0001,2]
[352846248,1739367039021,-892.0,0.0001,2]
[352846249,1739367039031,-892.0,0.0001,2]
[352846250,1739367039042,-892.0,0.0001,2]
[352846252,1739367039054,-542.48173149,0.00010635,2]
[352846254,1739367039065,-400.0,0.00010685,2]
[352846255,1739367039075,-5717.28603276,0.00010948,2]
[352846257,1739367039087,-246.96834135,0.00010951,2]
[352846259,1739367039098,-151.0,0.00010951,2]
[352846260,1739367039110,-500.0,0.00010957,2]
[352846261,1739367039121,-500.0,0.00010957,2]
[352846262,1739367039132,-500.0,0.00010957,2]
[352846263,1739367039143,-500.0,0.00010957,2]
[352846264,1739367039156,-500.0,0.00010957,2]
[352846265,1739367039172,-500.0,0.00010957,2]
[352846266,1739367039183,-500.0,0.00010957,2]
[352846267,1739367039194,-489.3034585,0.00010957,2]
[352846268,1739367039205,-500.0,0.00010957,2]
[352846269,1739367039215,-544.34603648,0.00010957,2]
[352846270,1739367039226,-500.0,0.00010957,2]
[352846271,1739367039237,-500.0,0.00010957,2]
[352846272,1739367039249,-500.0,0.00010957,2]
[352846273,1739367039260,-500.0,0.00010957,2]
[352846274,1739367039271,-500.0,0.00010957,2]
[352846275,1739367039282,-500.0,0.00010957,2]
[352846276,1739367039293,-500.0,0.00010957,2]
[352846277,1739367039304,-500.0,0.00010957,2]
[352846278,1739367039315,-500.0,0.00010957,2]
[352846279,1739367039326,-500.0,0.00010957,2]
[352846280,1739367039337,-500.0,0.00010957,2]
[352846281,1739367039347,-500.0,0.00010957,2]
[352846282,1739367039357,-500.0,0.00010957,2]
[352846283,1739367039368,-500.0,0.00010957,2]
[352846284,1739367039379,-500.0,0.00010957,2]
[352846285,1739367039389,-500.0,0.00010957,2]
[352846286,1739367039399,-500.0,0.00010957,2]
[352846287,1739367039413,-500.0,0.00010957,2]
[352846288,1739367039424,-500.0,0.00010957,2]
[352846289,1739367039434,-500.0,0.00010957,2]
[352846290,1739367039445,-500.0,0.00010957,2]
[352846291,1739367039455,-500.0,0.00010957,2]
[352846292,1739367039466,-500.0,0.00010957,2]
[352846293,1739367039477,-500.0,0.00010957,2]
[352846294,1739367039487,-500.0,0.00010957,2]
[352846295,1739367039498,-500.0,0.00010957,2]
[352846296,1739367039509,-500.0,0.00010957,2]
[352846297,1739367039519,-500.0,0.00010957,2]
[352846298,1739367039529,-500.0,0.00010957,2]
[352846299,1739367039540,-500.0,0.00010957,2]
[352846300,1739367039551,-500.0,0.00010957,2]
[352846301,1739367039562,-500.0,0.00010957,2]
[352846302,1739367039572,-500.0,0.00010957,2]
[352846303,1739367039583,-500.0,0.00010957,2]
[352846304,1739367039594,-169.28319951,0.00010957,2]
[352846359,1739367044695,-330.71680049,0.00010957,2]
[352846361,1739367044706,-500.0,0.00010957,2]
[352846362,1739367044717,-500.0,0.00010957,2]
[352846363,1739367044728,-500.0,0.00010957,2]
[352846364,1739367044740,-500.0,0.00010957,2]
[352846365,1739367044751,-500.0,0.00010957,2]
[352846366,1739367044762,-500.0,0.00010957,2]
[352846367,1739367044774,-500.0,0.00010957,2]
[352846368,1739367044784,-279.28057832,0.00010957,2]
[352846370,1739367044795,-500.0,0.00010957,2]
[352846371,1739367044806,-500.0,0.00010957,2]
[352846373,1739367044817,-569.11643929,0.00010957,2]
[352846374,1739367044828,-500.0,0.00010957,2]
[352846375,1739367044839,-500.0,0.00010957,2]
[352846376,1739367044850,-500.0,0.00010957,2]
[352846377,1739367044861,-500.0,0.00010957,2]
[352846378,1739367044872,-500.0,0.00010957,2]
[352846379,1739367044884,-500.0,0.00010957,2]
[352846380,1739367044898,-500.0,0.00010957,2]
[352846382,1739367044909,-500.0,0.00010957,2]
[352846384,1739367044925,-220.03618226,0.00010957,2]
[352846386,1739367044942,-279.96381774,0.00010957,2]
[352846387,1739367044953,-500.0,0.00010957,2]
[352846388,1739367044964,-500.0,0.00010957,2]
[352846389,1739367044980,-500.0,0.00010957,2]
[352846390,1739367044992,-500.0,0.00010957,2]
[352846391,1739367045003,-500.0,0.00010957,2]
[352846392,1739367045014,-500.0,0.00010957,2]
[352846393,1739367045026,-500.0,0.00010957,2]
[352846394,1739367045037,-500.0,0.00010957,2]
[352846395,1739367045050,-500.0,0.00010957,2]
[352846396,1739367045060,-500.0,0.00010957,2]
[352846397,1739367045070,-500.0,0.00010957,2]
[352846398,1739367045081,-500.0,0.00010957,2]
[352846399,1739367045091,-500.0,0.00010957,2]
[352846400,1739367045114,-500.0,0.00010957,2]
[352846401,1739367045126,-500.0,0.00010957,2]
[352846402,1739367045138,-83.42524061,0.00010957,2]
[352846403,1739367045153,-416.57475939,0.00010957,2]
[352846404,1739367045169,-96.53024061,0.00010957,2]
[352846406,1739367045185,-403.46975939,0.00010957,2]
[352846408,1739367045196,-500.0,0.00010957,2]
[352846409,1739367045208,-500.0,0.00010957,2]
[352846410,1739367045392,-500.0,0.00010957,2]
[352846411,1739367045403,-350.0,0.00010957,2]
[352846412,1739367045417,-500.0,0.00010957,2]
[352846413,1739367045427,-500.0,0.00010957,2]
[352846414,1739367045438,-500.0,0.00010957,2]
[352846415,1739367045448,-359.81564409,0.00010957,2]
[352846416,1739367045460,-140.18435591,0.00010957,2]
[352846417,1739367045470,-580.64092283,0.00010957,2]
[352846418,1739367045479,-500.0,0.00010958,2]
[352846419,1739367045489,-501.75703181,0.00010958,2]
[352846420,1739367045499,-502.04530904,0.00010958,2]
[352846421,1739367045509,-581.17933971,0.00010958,2]
[352846422,1739367045519,-500.0,0.00010958,2]
[352846423,1739367045530,-500.0,0.00010958,2]
[352846424,1739367045540,-286.50419672,0.00010958,2]
[352846425,1739367045550,-271.0707789,0.00010958,2]
[352846426,1739367045561,-500.0,0.00010958,2]
[352846427,1739367045572,-500.0,0.00010958,2]
[352846428,1739367045582,-502.47997598,0.00010958,2]
[352846429,1739367045593,-500.0,0.00010958,2]
[352846430,1739367045603,-500.0,0.00010958,2]
[352846431,1739367045615,-500.0,0.00010958,2]
[352846432,1739367045625,-500.0,0.00010958,2]
[352846433,1739367045637,-500.0,0.00010958,2]
[352846434,1739367045647,-500.0,0.00010958,2]
[352846435,1739367045658,-500.0,0.00010958,2]
[352846436,1739367045675,-500.0,0.00010958,2]
[352846437,1739367045686,-500.0,0.00010958,2]
[352846438,1739367045695,-500.0,0.00010958,2]
[352846439,1739367045706,-500.0,0.00010958,2]
[352846440,1739367045716,-500.0,0.00010958,2]
[352846441,1739367045727,-500.0,0.00010958,2]
[352846442,1739367045737,-500.0,0.00010958,2]
[352846443,1739367045747,-500.0,0.00010958,2]
[352846444,1739367045758,-500.0,0.00010958,2]
[352846445,1739367045768,-500.0,0.00010958,2]
[352846446,1739367045779,-500.0,0.00010958,2]
[352846447,1739367045789,-500.0,0.00010958,2]
[352846448,1739367045799,-500.0,0.00010958,2]
[352846449,1739367045809,-500.0,0.00010958,2]
[352846450,1739367045819,-500.0,0.00010958,2]
[352846451,1739367045834,-500.0,0.00010958,2]
[352846452,1739367045844,-500.0,0.00010958,2]
[352846453,1739367045854,-500.0,0.00010958,2]
[352846454,1739367045864,-500.0,0.00010958,2]
[352846455,1739367045873,-500.0,0.00010958,2]
[352846456,1739367045884,-500.0,0.00010958,2]
[352846457,1739367045898,-500.0,0.00010958,2]
[352846458,1739367045907,-500.0,0.00010958,2]
[352846459,1739367045925,-500.0,0.00010958,2]
[352846460,1739367045938,-500.0,0.00010958,2]
[352846461,1739367045949,-500.0,0.00010958,2]
[352846462,1739367045960,-500.0,0.00010958,2]
[352846464,1739367045972,-500.0,0.00010958,2]
[352846465,1739367045983,-500.0,0.00010958,2]
[352846466,1739367045995,-500.0,0.00010958,2]
[352846467,1739367046006,-500.0,0.00010958,2]
[352846469,1739367046018,-500.0,0.00010958,2]
[352846471,1739367046029,-500.0,0.00010958,2]
[352846473,1739367046039,-500.0,0.00010958,2]
[352846475,1739367046050,-500.0,0.00010958,2]
[352846478,1739367046061,-500.0,0.00010958,2]
[352846480,1739367046071,-500.0,0.00010958,2]
[352846482,1739367046081,-500.0,0.00010958,2]
[352846484,1739367046091,-500.0,0.00010958,2]
[352846485,1739367046101,-500.0,0.00010958,2]
[352846486,1739367046111,-500.0,0.00010958,2]
[352846487,1739367046121,-500.0,0.00010958,2]
[352846488,1739367046130,-500.0,0.00010958,2]
[352846489,1739367046141,-500.0,0.00010958,2]
[352846490,1739367046151,-500.0,0.00010958,2]
[352846491,1739367046162,-500.0,0.00010958,2]
[352846492,1739367046175,-500.0,0.00010958,2]
[352846493,1739367046185,-500.0,0.00010958,2]
[352846494,1739367046194,-500.0,0.00010958,2]
[352846495,1739367046204,-330.41889319,0.00010958,2]
[352846496,1739367046213,-500.0,0.00010958,2]
[352846497,1739367046223,-500.0,0.00010958,2]
[352846498,1739367046233,-500.0,0.00010958,2]
[352846499,1739367046243,-245.55527636,0.00010958,2]
[352846500,1739367046253,-500.0,0.00010958,2]
[352846501,1739367046263,-500.0,0.00010958,2]
[352846502,1739367046272,-500.0,0.00010958,2]
[352846503,1739367046282,-500.0,0.00010958,2]
[352846504,1739367046292,-500.0,0.00010958,2]
[352846505,1739367046303,-500.0,0.00010958,2]
[352846506,1739367046312,-500.0,0.00010958,2]
[352846507,1739367046322,-500.0,0.00010958,2]
[352846508,1739367046332,-500.0,0.00010958,2]
[352846509,1739367046341,-500.0,0.00010958,2]
[352846510,1739367046352,-500.0,0.00010958,2]
[352846511,1739367046362,-500.0,0.00010958,2]
[352846512,1739367046372,-500.0,0.00010958,2]
[352846513,1739367046381,-500.0,0.00010958,2]
[352846514,1739367046391,-500.0,0.00010958,2]
[352846515,1739367046401,-500.0,0.00010958,2]
[352846517,1739367046412,-500.0,0.00010958,2]
[352846520,1739367046426,-500.0,0.00010958,2]
[352846522,1739367046437,-500.0,0.00010958,2]
[352846524,1739367046448,-500.0,0.00010958,2]
[352846526,1739367046460,-500.0,0.00010958,2]
[352846527,1739367046471,-500.0,0.00010958,2]
[352846528,1739367046481,-500.0,0.00010958,2]
[352846529,1739367046491,-500.0,0.00010958,2]
[352846530,1739367046502,-500.0,0.00010958,2]
[352846531,1739367046512,-500.0,0.00010958,2]
[352846532,1739367046522,-500.0,0.00010958,2]
[352846533,1739367046532,-500.0,0.00010958,2]
[352846534,1739367046542,-870.62,0.00010958,2]
[352846535,1739367046553,-500.0,0.00010958,2]
[352846536,1739367046563,-500.0,0.00010958,2]
[352846537,1739367046573,-447.91876791,0.00010958,2]
[352846538,1739367046589,-52.08123209,0.00010958,2]
[352846539,1739367046599,-500.0,0.00010958,2]
[352846540,1739367046610,-398.01317151,0.00010958,2]
[352846541,1739367046620,-500.0,0.00010958,2]
[352846542,1739367046630,-500.0,0.00010958,2]
[352846543,1739367046640,-500.0,0.00010958,2]
[352846544,1739367046651,-566.92,0.00010958,2]
[352846545,1739367046661,-500.0,0.00010958,2]
[352846547,1739367046675,-194.66946926,0.00010958,2]
[352846548,1739367046686,-500.0,0.00010958,2]
[352846550,1739367046697,-500.0,0.00010958,2]
[352846551,1739367046707,-2233.62,0.00010958,2]
[352846552,1739367046717,-500.0,0.00010958,2]
[352846553,1739367046728,-500.0,0.00010958,2]
[352846554,1739367046738,-500.0,0.00010958,2]
[352846556,1739367046748,-500.0,0.00010958,2]
[352846558,1739367046757,-500.0,0.00010958,2]
[352846559,1739367046769,-500.0,0.00010958,2]
[352846560,1739367046782,-500.0,0.00010958,2]
[352846562,1739367046797,-500.0,0.00010958,2]
[352846564,1739367046811,-500.0,0.00010958,2]
[352846566,1739367046825,-500.0,0.00010958,2]
[352846568,1739367046840,-500.0,0.00010958,2]
[352846570,1739367046864,-500.0,0.00010958,2]
[352846572,1739367046876,-500.0,0.00010958,2]
[352846573,1739367046889,-500.0,0.00010958,2]
[352846574,1739367046905,-500.0,0.00010958,2]
[352846575,1739367046925,-500.74778256,0.00010958,2]
[352846576,1739367046939,-500.0,0.00010958,2]
[352846577,1739367046951,-433.8890098,0.00010958,2]
[352846578,1739367046964,-500.0,0.00010958,2]
[352846579,1739367046978,-500.0,0.00010958,2]
[352846580,1739367046993,-1482.9,0.00010958,2]
[352846581,1739367047004,-500.0,0.00010958,2]
[352846582,1739367047017,-500.0,0.00010958,2]
[352846583,1739367047031,-500.0,0.00010958,2]
[352846584,1739367047044,-500.0,0.00010958,2]
[352846585,1739367047057,-500.0,0.00010958,2]
[352846586,1739367047069,-500.0,0.00010958,2]
[352846587,1739367047080,-500.0,0.00010958,2]
[352846588,1739367047092,-500.0,0.00010958,2]
[352846589,1739367047105,-500.45479986,0.00010958,2]
[352846590,1739367047117,-8129.34,0.00010958,2]
[352846591,1739367047128,-500.0,0.00010958,2]
[352846592,1739367047141,-500.0,0.00010958,2]
[352846593,1739367047155,-787.14,0.00010958,2]
[352846594,1739367047169,-500.0,0.00010958,2]
[352846595,1739367047181,-500.0,0.00010958,2]
[352846596,1739367047193,-500.0,0.00010958,2]
[352846597,1739367047205,-500.0,0.00010958,2]
[352846598,1739367047218,-500.0,0.00010958,2]
[352846599,1739367047229,-500.0,0.00010958,2]
[352846600,1739367047241,-500.0,0.00010958,2]
[352846601,1739367047253,-908.16,0.00010958,2]
[352846602,1739367047264,-500.0,0.00010958,2]
[352846603,1739367047276,-500.0,0.00010958,2]
[352846604,1739367047296,-500.0,0.00010958,2]
[352846605,1739367047316,-500.0,0.00010958,2]
[352846606,1739367047332,-500.0,0.00010958,2]
[352846607,1739367047346,-500.0,0.00010958,2]
[352846608,1739367047359,-500.0,0.00010958,2]
[352846609,1739367047374,-500.0,0.00010958,2]
[352846610,1739367047388,-500.0,0.00010958,2]
[352846611,1739367047402,-500.0,0.00010958,2]
[352846612,1739367047419,-500.0,0.00010958,2]
[352846613,1739367047434,-500.0,0.00010958,2]
[352846614,1739367047449,-500.0,0.00010958,2]
[352846615,1739367047460,-649.96675723,0.00010958,2]
[352846616,1739367047471,-500.0,0.00010958,2]
[352846617,1739367047483,-500.0,0.00010958,2]
[352846618,1739367047494,-500.0,0.00010958,2]
[352846619,1739367047505,-504.3178462,0.00010958,2]
[352846620,1739367047517,-500.0,0.00010958,2]
[352846621,1739367047531,-500.0,0.00010958,2]
[352846622,1739367047546,-960.51,0.00010958,2]
[352846623,1739367047560,-500.0,0.00010958,2]
[352846624,1739367047574,-500.0,0.00010958,2]
[352846625,1739367047586,-500.0,0.00010958,2]
[352846626,1739367047597,-500.0,0.00010958,2]
[352846627,1739367047609,-2949.7,0.00010958,2]
[352846628,1739367047622,-500.0,0.00010958,2]
[352846629,1739367047634,-500.0,0.00010958,2]
[352846630,1739367047650,-850.38,0.00010958,2]